fUSD/lending_fUSD_20250716
["ID","MTS","AMOUNT","RATE_DAILY","PERIOD"]
[372427832,1752640266077,-877.25,0.00022053,2]
[372427833,1752640266086,-1413.56,0.00022053,2]
[372427834,1752640266098,-1413.56,0.00022053,2]
[372427835,1752640266110,-1413.56,0.00022053,2]
[372427836,1752640266121,-1413.56,0.00022053,2]
[372427837,1752640266131,-1413.56,0.00022053,2]
[372427838,1752640266140,-1413.56,0.00022053,2]
[372427839,1752640266150,-1413.56,0.00022053,2]
[372427840,1752640266159,-1413.56,0.00022053,2]
[372427841,1752640266169,-1413.56,0.00022053,2]
[372427842,1752640266178,-1413.56,0.00022053,2]
[372427843,1752640266187,-1413.56,0.00022053,2]
[372427844,1752640266196,-500.0,0.00022053,2]
[372427845,1752640266205,-500.0,0.00022053,2]
[372427846,1752640266215,-1413.77447794,0.00022053,2]
[372427847,1752640266224,-500.0,0.00022053,2]
[372427848,1752640266233,-500.0,0.00022053,2]
[372427849,1752640266243,-500.0,0.00022053,2]
[372427850,1752640266252,-500.0,0.00022053,2]
[372427851,1752640266262,-500.0,0.00022053,2]
[372427852,1752640266271,-500.0,0.00022053,2]
[372427853,1752640266281,-553.57,0.00022053,2]
[372427854,1752640266290,-553.57,0.00022053,2]
[372427855,1752640266301,-553.57,0.00022053,2]
[372427856,1752640266311,-553.57,0.00022053,2]
[372427857,1752640266321,-553.57,0.00022053,2]
[372427858,1752640266331,-553.57,0.00022053,2]
[372427859,1752640266340,-553.57,0.00022053,2]
[372427860,1752640266350,-553.57,0.00022053,2]
[372427861,1752640266360,-553.57,0.00022053,2]
[372427862,1752640266370,-1075.98,0.00022053,2]
[372427863,1752640266380,-1075.98,0.00022053,2]
[372427864,1752640266389,-1075.98,0.00022053,2]
[372427865,1752640266400,-1435.35,0.00022053,2]
[372427866,1752640266410,-1075.98,0.00022053,2]
[372427867,1752640266419,-1435.35,0.00022053,2]
[372427868,1752640266429,-1075.98,0.00022053,2]
[372427869,1752640266438,-1435.35,0.00022053,2]
[372427870,1752640266447,-1435.35,0.00022053,2]
[372427871,1752640266457,-1435.35,0.00022053,2]
[372427872,1752640266466,-1435.35,0.00022053,2]
[372427873,1752640266476,-1435.35,0.00022053,2]
[372427874,1752640266485,-1435.35,0.00022053,2]
[372427875,1752640266495,-150.0,0.00022053,2]
[372427876,1752640266504,-1435.35,0.00022053,2]
[372427877,1752640266513,-150.0,0.00022053,2]
[372427878,1752640266523,-150.0,0.00022053,2]
[372427879,1752640266532,-150.0,0.00022053,2]
[372427880,1752640266542,-1075.98,0.00022053,2]
[372427881,1752640266553,-1075.98,0.00022053,2]
[372427882,1752640266563,-1075.98,0.00022053,2]
[372427883,1752640266573,-1696.124456,0.00022054,2]
[372427884,1752640266582,-2978.513972,0.00022054,2]
[372427885,1752640266592,-4003.034026,0.00022054,2]
[372427886,1752640266601,-154.024945,0.00022054,2]
[372427887,1752640266611,-150.0,0.00022054,2]
[372427888,1752640266620,-488.16164168,0.00022054,2]
[372427889,1752640266630,-460.0,0.00022054,2]
[372427890,1752640266639,-460.0,0.00022054,2]
[372427891,1752640266649,-609.07,0.00022054,2]
[372427892,1752640266658,-609.07,0.00022054,2]
[372427893,1752640266668,-676.33,0.00022054,2]
[372427894,1752640266677,-460.0,0.00022054,2]
[372427895,1752640266687,-460.0,0.00022054,2]
[372427896,1752640266696,-485.72,0.00022054,2]
[372427897,1752640266706,-460.0,0.00022054,2]
[372427898,1752640266715,-460.0,0.00022054,2]
[372427899,1752640266724,-786.73,0.00022054,2]
[372427900,1752640266734,-564.81,0.00022054,2]
[372427901,1752640266744,-499.15,0.00022054,2]
[372427902,1752640266754,-460.0,0.00022054,2]
[372427903,1752640266764,-460.0,0.00022054,2]
[372427904,1752640266773,-460.0,0.00022054,2]
[372427905,1752640266783,-151.0,0.00022054,2]
[372427906,1752640266793,-548.54,0.00022054,2]
[372427907,1752640266803,-460.0,0.00022054,2]
[372427908,1752640266813,-460.0,0.00022054,2]
[372427909,1752640266823,-460.0,0.00022054,2]
[372427910,1752640266834,-462.8600667,0.00022054,2]
[372427911,1752640266844,-460.0,0.00022054,2]
[372427912,1752640266854,-1725.33,0.00022054,2]
[372427913,1752640266864,-460.0,0.00022054,2]
[372427914,1752640266873,-460.0,0.00022054,2]
[372427915,1752640266883,-619.08,0.00022054,2]
[372427916,1752640266893,-460.0,0.00022054,2]
[372427917,1752640266902,-478.2,0.00022054,2]
[372427918,1752640266912,-460.0,0.00022054,2]
[372427919,1752640266922,-856.95,0.00022054,2]
[372427920,1752640266932,-460.0,0.00022054,2]
[372427921,1752640266943,-460.0,0.00022054,2]
[372427922,1752640266953,-460.0,0.00022054,2]
[372427923,1752640266962,-460.0,0.00022054,2]
[372427924,1752640266971,-460.0,0.00022054,2]
[372427925,1752640266981,-476.42212776,0.00022054,2]
[372427926,1752640266990,-1149.99,0.00022054,2]
[372427927,1752640267000,-220.02074381,0.00022054,2]
[372427928,1752640267011,-460.0,0.00022054,2]
[372427929,1752640267020,-460.0,0.00022054,2]
[372427930,1752640267032,-463.02209047,0.00022054,2]
[372427931,1752640267042,-498.94413549,0.00022054,2]
[372427932,1752640267053,-464.3567246,0.00022054,2]
[372427933,1752640267062,-460.0,0.00022054,2]
[372427934,1752640267072,-460.0,0.00022054,2]
[372427935,1752640267081,-460.0,0.00022054,2]
[372427936,1752640267091,-460.0,0.00022054,2]
[372427937,1752640267100,-150.0,0.00022054,2]
[372427938,1752640267111,-460.0,0.00022054,2]
[372427939,1752640267121,-929.43205491,0.00022054,2]
[372427940,1752640267130,-260.399857,0.00022054,2]
[372427941,1752640267139,-460.0,0.00022054,2]
[372427942,1752640267148,-460.0,0.00022054,2]
[372427943,1752640267157,-237.64378677,0.00022054,2]
[372427944,1752640267167,-837.4,0.00022054,2]
[372427945,1752640267176,-460.0,0.00022054,2]
[372427946,1752640267185,-462.00485349,0.00022054,2]
[372427947,1752640267195,-970.38,0.00022054,2]
[372427948,1752640267205,-460.0,0.00022054,2]
[372427949,1752640267214,-151.0,0.00022054,7]
[372427950,1752640267224,-497.71,0.00022054,2]
[372427951,1752640267233,-430.03940108,0.00022054,2]
[372427952,1752640267243,-460.0,0.00022054,2]
[372427953,1752640267252,-460.0,0.00022054,2]
[372427954,1752640267261,-500.0,0.00022054,2]
[372427955,1752640267270,-462.85897206,0.00022054,2]
[372427956,1752640267280,-358.01,0.00022054,2]
[372427957,1752640267289,-460.0,0.00022054,2]
[372427958,1752640267299,-746.45,0.00022054,2]
[372427959,1752640267309,-460.0,0.00022054,2]
[372427960,1752640267319,-460.0,0.00022054,2]
[372427961,1752640267328,-460.0,0.00022054,2]
[372427962,1752640267337,-460.0,0.00022054,2]
[372427963,1752640267347,-460.0,0.00022054,2]
[372427964,1752640267695,-462.72357893,0.00022054,2]
[372427965,1752640267718,-1293.08,0.00022054,2]
[372427966,1752640267728,-460.0,0.00022054,2]
[372427967,1752640267737,-462.44915009,0.00022054,2]
[372427968,1752640267747,-1219.21,0.00022054,2]
[372427969,1752640267757,-460.0,0.00022054,2]
[372427970,1752640267769,-794.88,0.00022054,2]
[372427971,1752640267779,-460.0,0.00022054,2]
[372427972,1752640267789,-460.0,0.00022054,2]
[372427973,1752640267799,-464.49465789,0.00022054,2]
[372427974,1752640267809,-460.0,0.00022054,2]
[372427975,1752640267819,-460.0,0.00022054,2]
[372427976,1752640267828,-876.2,0.00022054,2]
[372427977,1752640267838,-1422.42,0.00022054,2]
[372427978,1752640267848,-460.0,0.00022054,2]
[372427979,1752640267858,-493.46383809,0.00022054,2]
[372427980,1752640267867,-460.0,0.00022054,2]
[372427981,1752640267877,-460.0,0.00022054,2]
[372427982,1752640267887,-896.96,0.00022054,2]
[372427983,1752640267897,-460.0,0.00022054,2]
[372427984,1752640267907,-552.27,0.00022054,2]
[372427985,1752640267917,-460.0,0.00022054,2]
[372427986,1752640267927,-460.0,0.00022054,2]
[372427987,1752640267937,-153.0,0.00022054,2]
[372427988,1752640267948,-153.0,0.00022054,2]
[372427989,1752640267959,-153.0,0.00022054,2]
[372427990,1752640267968,-153.0,0.00022054,2]
[372427991,1752640267979,-153.87333875,0.00022054,2]
[372427992,1752640267998,-460.0,0.00022054,2]
[372427993,1752640268016,-679.48,0.00022054,2]
[372427994,1752640268028,-1181.67,0.00022054,2]
[372427995,1752640268042,-460.0,0.00022054,2]
[372427996,1752640268052,-460.0,0.00022054,2]
[372427997,1752640268062,-1132.15,0.00022054,2]
[372427998,1752640268071,-460.0,0.00022054,2]
[372427999,1752640268082,-1020.4,0.00022054,2]
[372428000,1752640268093,-460.0,0.00022054,2]
[372428001,1752640268102,-533.41,0.00022054,2]
[372428002,1752640268112,-464.72190609,0.00022054,2]
[372428003,1752640268123,-855.23,0.00022054,2]
[372428004,1752640268133,-460.0,0.00022054,2]
[372428005,1752640268145,-1065.83,0.00022054,2]
[372428006,1752640268155,-645.62,0.00022054,2]
[372428007,1752640268165,-460.0,0.00022054,2]
[372428008,1752640268174,-942.06,0.00022054,2]
[372428009,1752640268186,-460.0,0.00022054,2]
[372428010,1752640268195,-460.0,0.00022054,2]
[372428011,1752640268205,-499.6,0.00022054,2]
[372428012,1752640268214,-460.0,0.00022054,2]
[372428013,1752640268224,-460.0,0.00022054,2]
[372428014,1752640268233,-460.0,0.00022054,2]
[372428015,1752640268242,-787.07,0.00022054,2]
[372428016,1752640268252,-460.0,0.00022054,2]
[372428017,1752640268262,-232.49252186,0.00022054,2]
[372428018,1752640268271,-460.0,0.00022054,2]
[372428019,1752640268281,-460.0,0.00022054,2]
[372428020,1752640268291,-460.0,0.00022054,2]
[372428021,1752640268300,-498.57,0.00022054,2]
[372428022,1752640268310,-460.0,0.00022054,2]
[372428023,1752640268320,-460.0,0.00022054,2]
[372428024,1752640268330,-460.0,0.00022054,2]
[372428025,1752640268339,-684.19,0.00022054,2]
[372428026,1752640268349,-460.0,0.00022054,2]
[372428027,1752640268358,-460.0,0.00022054,2]
[372428028,1752640268367,-460.0,0.00022054,2]
[372428029,1752640268377,-924.1,0.00022054,2]
[372428030,1752640268387,-460.0,0.00022054,2]
[372428031,1752640268396,-460.0,0.00022054,2]
[372428032,1752640268406,-492.99,0.00022054,2]
[372428033,1752640268415,-501.65,0.00022054,2]
[372428034,1752640268425,-583.06,0.00022054,2]
[372428035,1752640268435,-463.6739254,0.00022054,2]
[372428036,1752640268444,-460.0,0.00022054,2]
[372428037,1752640268454,-574.77,0.00022054,2]
[372428038,1752640268463,-863.36,0.00022054,2]
[372428039,1752640268472,-1022.59,0.00022054,2]
[372428040,1752640268483,-768.23,0.00022054,2]
[372428041,1752640268493,-647.37,0.00022054,2]
[372428042,1752640268502,-460.0,0.00022054,2]
[372428043,1752640268512,-460.0,0.00022054,2]
[372428044,1752640268521,-460.0,0.00022054,2]
[372428045,1752640268531,-383.47158501,0.00022054,2]
[372428046,1752640268541,-460.0,0.00022054,2]
[372428047,1752640268551,-460.0,0.00022054,2]
[372428048,1752640268561,-460.0,0.00022054,2]
[372428049,1752640268571,-477.02,0.00022054,2]
[372428050,1752640268582,-1853.93,0.00022054,2]
[372428051,1752640268593,-886.07,0.00022054,2]
[372428052,1752640268603,-460.0,0.00022054,2]
[372428053,1752640268614,-460.0,0.00022054,2]
[372428054,1752640268624,-460.0,0.00022054,2]
[372428055,1752640268634,-460.0,0.00022054,2]
[372428056,1752640268645,-460.0,0.00022054,2]
[372428057,1752640268657,-488.08,0.00022054,2]
[372428058,1752640268667,-1499.11,0.00022054,2]
[372428059,1752640268677,-681.5,0.00022054,2]
[372428060,1752640268687,-460.0,0.00022054,2]
[372428061,1752640268697,-460.0,0.00022054,2]
[372428062,1752640268707,-462.46419417,0.00022054,2]
[372428063,1752640268717,-460.0,0.00022054,2]
[372428064,1752640268726,-462.70941609,0.00022054,2]
[372428065,1752640268736,-460.0,0.00022054,2]
[372428066,1752640268746,-460.0,0.00022054,2]
[372428067,1752640268756,-685.64,0.00022054,2]
[372428068,1752640268766,-460.0,0.00022054,2]
[372428069,1752640268776,-460.0,0.00022054,2]
[372428070,1752640268785,-466.34179256,0.00022054,2]
[372428071,1752640268795,-460.0,0.00022054,2]
[372428072,1752640268806,-460.0,0.00022054,2]
[372428073,1752640268816,-1584.59,0.00022054,2]
[372428074,1752640268826,-1233.45,0.00022054,2]
[372428075,1752640268836,-460.0,0.00022054,2]
[372428076,1752640268846,-460.0,0.00022054,2]
[372428077,1752640268856,-460.0,0.00022054,2]
[372428078,1752640268865,-460.0,0.00022054,2]
[372428079,1752640268875,-1088.44,0.00022054,2]
[372428080,1752640268886,-720.21,0.00022054,2]
[372428081,1752640268896,-460.0,0.00022054,2]
[372428082,1752640268906,-460.0,0.00022054,2]
[372428083,1752640268916,-460.0,0.00022054,2]
[372428084,1752640268926,-1022.57,0.00022054,2]
[372428085,1752640268936,-461.00633438,0.00022054,2]
[372428086,1752640268946,-460.0,0.00022054,2]
[372428087,1752640268956,-460.0,0.00022054,2]
[372428088,1752640268967,-460.0,0.00022054,2]
[372428089,1752640268978,-154.54,0.00022054,2]
[372428090,1752640268988,-460.0,0.00022054,2]
[372428091,1752640268998,-462.47978554,0.00022054,2]
[372428092,1752640269008,-614.48,0.00022054,2]
[372428093,1752640269018,-658.41,0.00022054,2]
[372428094,1752640269028,-460.0,0.00022054,2]
[372428095,1752640269042,-460.0,0.00022054,2]
[372428096,1752640269051,-806.67,0.00022054,2]
[372428097,1752640269063,-460.0,0.00022054,2]
[372428098,1752640269073,-492.0,0.00022054,2]
[372428099,1752640269083,-460.0,0.00022054,2]
[372428100,1752640269093,-460.82691468,0.00022054,2]
[372428101,1752640269103,-1906.34,0.00022054,2]
[372428102,1752640269114,-460.0,0.00022054,2]
[372428103,1752640269125,-803.65,0.00022054,2]
[372428104,1752640269134,-460.0,0.00022054,2]
[372428105,1752640269144,-460.0,0.00022054,2]
[372428106,1752640269153,-636.81,0.00022054,2]
[372428107,1752640269163,-460.0,0.00022054,2]
[372428108,1752640269173,-460.0,0.00022054,2]
[372428109,1752640269182,-995.28,0.00022054,2]
[372428110,1752640269192,-461.41306093,0.00022054,2]
[372428111,1752640269202,-460.0,0.00022054,2]
[372428112,1752640269212,-600.31798939,0.00022054,2]
[372428113,1752640269221,-460.0,0.00022054,2]
[372428114,1752640269231,-885.56,0.00022054,2]
[372428115,1752640269241,-460.0,0.00022054,2]
[372428116,1752640269251,-422.24460787,0.00022054,2]
[372428117,1752640269261,-460.0,0.00022054,2]
[372428118,1752640269271,-460.0,0.00022054,2]
[372428119,1752640269280,-1401.27,0.00022054,2]
[372428120,1752640269290,-1113.01,0.00022054,2]
[372428121,1752640269300,-460.0,0.00022054,2]
[372428122,1752640269311,-554.59,0.00022054,2]
[372428123,1752640269321,-621.14,0.00022054,2]
[372428124,1752640269330,-460.0,0.00022054,2]
[372428125,1752640269340,-460.0,0.00022054,2]
[372428126,1752640269349,-460.0,0.00022054,2]
[372428127,1752640269359,-249.76905423,0.00022054,2]
[372428128,1752640269369,-460.0,0.00022054,2]
[372428129,1752640269378,-460.0,0.00022054,2]
[372428130,1752640269388,-460.0,0.00022054,2]
[372428131,1752640269397,-460.0,0.00022054,2]
[372428132,1752640269407,-1502.0,0.00022054,2]
[372428133,1752640269416,-542.62,0.00022054,2]
[372428134,1752640269426,-460.0,0.00022054,2]
[372428135,1752640269435,-659.73,0.00022054,2]
[372428136,1752640269444,-927.19,0.00022054,2]
[372428137,1752640269453,-199.64148778,0.00022054,2]
[372428138,1752640269463,-460.0,0.00022054,2]
[372428139,1752640269473,-460.0,0.00022054,2]
[372428140,1752640269483,-460.0,0.00022054,2]
[372428141,1752640269492,-460.0,0.00022054,2]
[372428142,1752640269502,-460.0,0.00022054,2]
[372428143,1752640269511,-460.0,0.00022054,2]
[372428144,1752640269521,-460.0,0.00022054,2]
[372428145,1752640269531,-460.0,0.00022054,2]
[372428146,1752640269540,-460.0,0.00022054,2]
[372428147,1752640269550,-460.0,0.00022054,2]
[372428148,1752640269560,-460.0,0.00022054,2]
[372428149,1752640269570,-411.73068748,0.00022054,2]
[372428150,1752640269580,-460.0,0.00022054,2]
[372428151,1752640269591,-840.22,0.00022054,2]
[372428152,1752640269601,-460.0,0.00022054,2]
[372428153,1752640269612,-1183.48,0.00022054,2]
[372428154,1752640269624,-460.0,0.00022054,2]
[372428155,1752640269635,-1779.16,0.00022054,2]
[372428156,1752640269646,-460.0,0.00022054,2]
[372428157,1752640269656,-208.22,0.00022054,2]
[372428158,1752640269668,-460.0,0.00022054,2]
[372428159,1752640269679,-460.0,0.00022054,2]
[372428160,1752640269691,-693.88,0.00022054,2]
[372428161,1752640269701,-460.0,0.00022054,2]
[372428162,1752640269711,-460.0,0.00022054,2]
[372428163,1752640269720,-582.5,0.00022054,2]
[372428164,1752640269730,-514.22,0.00022054,2]
[372428165,1752640269739,-460.0,0.00022054,2]
[372428166,1752640269749,-460.0,0.00022054,2]
[372428167,1752640269758,-680.81,0.00022054,2]
[372428168,1752640269769,-460.0,0.00022054,2]
[372428169,1752640269779,-1002.22,0.00022054,2]
[372428170,1752640269788,-460.0,0.00022054,2]
[372428171,1752640269799,-460.0,0.00022054,2]
[372428172,1752640269810,-903.29,0.00022054,2]
[372428173,1752640269819,-564.04,0.00022054,2]
[372428174,1752640269829,-460.0,0.00022054,2]
[372428175,1752640269839,-655.39,0.00022054,2]
[372428176,1752640269851,-460.0,0.00022054,2]
[372428177,1752640269861,-1383.4,0.00022054,2]
[372428178,1752640269872,-460.0,0.00022054,2]
[372428179,1752640269882,-526.3220976,0.00022054,2]
[372428180,1752640269892,-460.0,0.00022054,2]
[372428181,1752640269901,-414.70965486,0.00022054,2]
[372428182,1752640269911,-460.0,0.00022054,2]
[372428183,1752640269920,-460.0,0.00022054,2]
[372428184,1752640269930,-670.34,0.00022054,2]
[372428185,1752640269940,-460.0,0.00022054,2]
[372428186,1752640269950,-460.0,0.00022054,2]
[372428187,1752640269959,-460.0,0.00022054,2]
[372428188,1752640269970,-460.0,0.00022054,2]
[372428189,1752640269979,-460.0,0.00022054,2]
[372428190,1752640269989,-460.0,0.00022054,2]
[372428191,1752640270001,-460.0,0.00022054,2]
[372428192,1752640270012,-2484.64,0.00022054,2]
[372428193,1752640270024,-460.0,0.00022054,2]
[372428194,1752640270039,-460.0,0.00022054,2]
[372428195,1752640270050,-1352.04,0.00022054,2]
[372428196,1752640270060,-460.0,0.00022054,2]
[372428197,1752640270070,-460.0,0.00022054,2]
[372428198,1752640270080,-503.62699348,0.00022054,2]
[372428199,1752640270089,-460.0,0.00022054,2]
[372428200,1752640270099,-460.0,0.00022054,2]
[372428201,1752640270108,-508.99,0.00022054,2]
[372428202,1752640270118,-460.0,0.00022054,2]
[372428203,1752640270127,-469.05,0.00022054,2]
[372428204,1752640270137,-463.03234793,0.00022054,2]
[372428205,1752640270146,-465.44040657,0.00022054,2]
[372428206,1752640270155,-460.0,0.00022054,2]
[372428207,1752640270279,-460.0,0.00022054,2]
[372428208,1752640270288,-460.0,0.00022054,2]
[372428209,1752640270298,-862.63,0.00022054,2]
[372428210,1752640270309,-628.94,0.00022054,2]
[372428211,1752640270318,-1101.67,0.00022054,2]
[372428212,1752640270327,-463.19245736,0.00022054,2]
[372428213,1752640270336,-460.0,0.00022054,2]
[372428214,1752640270346,-464.27514001,0.00022054,2]
[372428215,1752640270355,-3533.81,0.00022054,2]
[372428216,1752640270364,-460.0,0.00022054,2]
[372428217,1752640270374,-460.0,0.00022054,2]
[372428218,1752640270383,-556.63238136,0.00022054,2]
[372428219,1752640270393,-553.48,0.00022054,2]
[372428220,1752640270402,-460.0,0.00022054,2]
[372428221,1752640270411,-460.0,0.00022054,2]
[372428222,1752640270420,-460.0,0.00022054,2]
[372428223,1752640270430,-460.0,0.00022054,2]
[372428224,1752640270439,-460.0,0.00022054,2]
[372428225,1752640270448,-460.0,0.00022054,2]
[372428226,1752640270457,-460.0,0.00022054,2]
[372428227,1752640270466,-460.0,0.00022054,2]
[372428228,1752640270476,-2551.64,0.00022054,2]
[372428229,1752640270486,-460.0,0.00022054,2]
[372428230,1752640270495,-923.9,0.00022054,2]
[372428231,1752640270504,-1445.03,0.00022054,2]
[372428232,1752640270513,-460.0,0.00022054,2]
[372428233,1752640270523,-460.0,0.00022054,2]
[372428234,1752640270532,-1081.35,0.00022054,2]
[372428235,1752640270541,-1170.6,0.00022054,2]
[372428236,1752640270550,-460.0,0.00022054,2]
[372428237,1752640270560,-460.0,0.00022054,2]
[372428238,1752640270569,-460.0,0.00022054,2]
[372428239,1752640270579,-151.0,0.00022054,7]
[372428240,1752640270588,-460.0,0.00022054,2]
[372428241,1752640270597,-460.0,0.00022054,2]
[372428242,1752640270607,-460.0,0.00022054,2]
[372428243,1752640270622,-2800.98,0.00022054,2]
[372428244,1752640270636,-460.0,0.00022054,2]
[372428245,1752640270655,-460.0,0.00022054,2]
[372428246,1752640270664,-461.18,0.00022054,2]
[372428247,1752640270674,-614.13,0.00022054,2]
[372428248,1752640270683,-583.4,0.00022054,2]
[372428249,1752640270692,-460.0,0.00022054,2]
[372428250,1752640270701,-471.89,0.00022054,2]
[372428251,1752640270710,-460.0,0.00022054,2]
[372428252,1752640270719,-772.47,0.00022054,2]
[372428253,1752640270728,-460.0,0.00022054,2]
[372428254,1752640270737,-460.0,0.00022054,2]
[372428255,1752640270746,-800.73,0.00022054,2]
[372428256,1752640270755,-1817.87,0.00022054,2]
[372428257,1752640270765,-687.21,0.00022054,2]
[372428258,1752640270774,-460.0,0.00022054,2]
[372428259,1752640270784,-461.27877351,0.00022054,2]
[372428260,1752640270793,-460.0,0.00022054,2]
[372428261,1752640270803,-922.48,0.00022054,2]
[372428262,1752640270812,-528.41,0.00022054,2]
[372428263,1752640270822,-1433.87,0.00022054,2]
[372428264,1752640270833,-460.0,0.00022054,2]
[372428265,1752640270842,-1043.39,0.00022054,2]
[372428266,1752640270852,-609.61,0.00022054,2]
[372428267,1752640270862,-460.0,0.00022054,2]
[372428268,1752640270872,-947.54,0.00022054,2]
[372428269,1752640270882,-462.7719112,0.00022054,2]
[372428270,1752640270891,-460.0,0.00022054,2]
[372428271,1752640270900,-552.56,0.00022054,2]
[372428272,1752640270918,-851.49,0.00022054,2]
[372428273,1752640270929,-460.0,0.00022054,2]
[372428274,1752640270938,-460.0,0.00022054,2]
[372428275,1752640270947,-460.0,0.00022054,2]
[372428276,1752640270957,-1428.01,0.00022054,2]
[372428277,1752640270966,-460.0,0.00022054,2]
[372428278,1752640270976,-460.0,0.00022054,2]
[372428279,1752640270985,-617.8,0.00022054,2]
[372428280,1752640270995,-1636.27,0.00022054,2]
[372428281,1752640271005,-460.0,0.00022054,2]
[372428282,1752640271014,-460.0,0.00022054,2]
[372428283,1752640271024,-554.44,0.00022054,2]
[372428284,1752640271038,-460.0,0.00022054,2]
[372428285,1752640271047,-468.78419582,0.00022054,2]
[372428286,1752640271056,-460.0,0.00022054,2]
[372428287,1752640271065,-1497.63,0.00022054,2]
[372428288,1752640271076,-460.0,0.00022054,2]
[372428289,1752640271086,-910.75,0.00022054,2]
[372428290,1752640271095,-460.0,0.00022054,2]
[372428291,1752640271106,-1004.91,0.00022054,2]
[372428292,1752640271115,-502.28,0.00022054,2]
[372428293,1752640271125,-963.04,0.00022054,2]
[372428294,1752640271134,-460.0,0.00022054,2]
[372428295,1752640271143,-460.0,0.00022054,2]
[372428296,1752640271151,-460.0,0.00022054,2]
[372428297,1752640271159,-3605.76,0.00022054,2]
[372428298,1752640271167,-995.81,0.00022054,2]
[372428299,1752640271175,-460.0,0.00022054,2]
[372428300,1752640271185,-460.0,0.00022054,2]
[372428301,1752640271194,-528.52067681,0.00022054,2]
[372428302,1752640271203,-656.96,0.00022054,2]
[372428303,1752640271212,-460.0,0.00022054,2]
[372428304,1752640271221,-460.0,0.00022054,2]
[372428305,1752640271230,-524.84387428,0.00022054,2]
[372428306,1752640271239,-460.0,0.00022054,2]
[372428307,1752640271248,-460.0,0.00022054,2]
[372428308,1752640271257,-460.0,0.00022054,2]
[372428309,1752640271266,-498.89,0.00022054,2]
[372428310,1752640271275,-460.0,0.00022054,2]
[372428311,1752640271284,-1937.14,0.00022054,2]
[372428312,1752640271294,-460.0,0.00022054,2]
[372428313,1752640271303,-460.0,0.00022054,2]
[372428314,1752640271313,-1421.68,0.00022054,2]
[372428315,1752640271322,-462.83083467,0.00022054,2]
[372428316,1752640271331,-460.0,0.00022054,2]
[372428317,1752640271340,-460.0,0.00022054,2]
[372428318,1752640271350,-460.0,0.00022054,2]
[372428319,1752640271359,-1728.83,0.00022054,2]
[372428320,1752640271368,-460.0,0.00022054,2]
[372428321,1752640271378,-599.18,0.00022054,2]
[372428322,1752640271388,-460.0,0.00022054,2]
[372428323,1752640271397,-460.0,0.00022054,2]
[372428324,1752640271407,-813.19,0.00022054,2]
[372428325,1752640271416,-3358.73,0.00022054,2]
[372428326,1752640271425,-2167.54,0.00022054,2]
[372428327,1752640271435,-460.0,0.00022054,2]
[372428328,1752640271445,-460.0,0.00022054,2]
[372428329,1752640271454,-460.0,0.00022054,2]
[372428330,1752640271464,-460.0,0.00022054,2]
[372428331,1752640271473,-460.0,0.00022054,2]